[Event "Early-Titled-Tuesday-Blitz-February-06-2024"]
[Site "Chess.com"]
[Date "2024.02.06"]
[Round "4"]
[White "Elnaz_Kaliakhmet"]
[Black "IriBu"]
[Result "1-0"]
[WhiteElo "2236"]
[BlackElo "2540"]
[TimeControl "180+1"]
[EndTime "8:41:02 PST"]
[Termination "Elnaz_Kaliakhmet won by resignation"]

1. e4 {[%clk 0:03:00.9]} 1... c5 {[%clk 0:02:58.7]} 2. Nf3 {[%clk 0:02:59.4]}
2... Nc6 {[%clk 0:02:58.5]} 3. d4 {[%clk 0:02:57.5]} 3... cxd4 {[%clk
0:02:58.5]} 4. Nxd4 {[%clk 0:02:58.4]} 4... e5 {[%clk 0:02:58.5]} 5. Nb5 {[%clk
0:02:58.1]} 5... d6 {[%clk 0:02:58.2]} 6. c4 {[%clk 0:02:58]} 6... Be6 {[%clk
0:02:55.7]} 7. N1c3 {[%clk 0:02:57.8]} 7... a6 {[%clk 0:02:55.7]} 8. Na3 {[%clk
0:02:57.1]} 8... Nf6 {[%clk 0:02:56.1]} 9. Be2 {[%clk 0:02:52.8]} 9... Be7
{[%clk 0:02:52]} 10. Be3 {[%clk 0:02:53.2]} 10... O-O {[%clk 0:02:51.1]} 11. O-O
{[%clk 0:02:53.6]} 11... Rc8 {[%clk 0:02:50.6]} 12. Nc2 {[%clk 0:02:53.3]} 12...
Na5 {[%clk 0:02:48.9]} 13. b3 {[%clk 0:02:51.6]} 13... b5 {[%clk 0:02:48.5]} 14.
Nd5 {[%clk 0:01:53.9]} 14... Bxd5 {[%clk 0:02:36.1]} 15. exd5 {[%clk 0:01:54.8]}
15... bxc4 {[%clk 0:02:34.2]} 16. b4 {[%clk 0:01:52.3]} 16... Nb7 {[%clk
0:02:31.6]} 17. a4 {[%clk 0:01:49.1]} 17... Ne4 {[%clk 0:02:25.1]} 18. Na3
{[%clk 0:01:37]} 18... Nc3 {[%clk 0:02:04.3]} 19. Qd2 {[%clk 0:01:36.3]} 19...
Nxe2+ {[%clk 0:02:04.3]} 20. Qxe2 {[%clk 0:01:37.2]} 20... a5 {[%clk 0:02:04.7]}
21. b5 {[%clk 0:01:33.9]} 21... c3 {[%clk 0:02:02.7]} 22. Rfc1 {[%clk
0:01:33.1]} 22... f5 {[%clk 0:01:54.4]} 23. f3 {[%clk 0:01:30.3]} 23... Nc5
{[%clk 0:01:50.5]} 24. Rxc3 {[%clk 0:01:18.8]} 24... Nxa4 {[%clk 0:01:46.2]} 25.
Rxc8 {[%clk 0:01:19.7]} 25... Qxc8 {[%clk 0:01:46.7]} 26. Rc1 {[%clk 0:01:17.8]}
26... Qb7 {[%clk 0:01:41.9]} 27. Qc4 {[%clk 0:01:15.6]} 27... Nc5 {[%clk
0:01:37.1]} 28. Bxc5 {[%clk 0:01:14.9]} 28... Rc8 {[%clk 0:01:37.2]} 29. Qb3
{[%clk 0:01:09.7]} 29... a4 {[%clk 0:01:30.7]} 30. Qa2 {[%clk 0:01:09.4]} 30...
Kf8 {[%clk 0:01:18.6]} 31. Be3 {[%clk 0:01:08.1]} 31... Rxc1+ {[%clk 0:01:18.6]}
32. Bxc1 {[%clk 0:01:09]} 32... Qa7+ {[%clk 0:01:19.2]} 33. Qf2 {[%clk
0:01:06.5]} 33... Qa5 {[%clk 0:01:16.1]} 34. b6 {[%clk 0:01:02.1]} 34... Bd8
{[%clk 0:01:11.1]} 35. Nc4 {[%clk 0:00:59]} 35... Qxd5 {[%clk 0:01:08.9]} 36.
Qc2 {[%clk 0:00:48.2]} 36... g6 {[%clk 0:00:52.2]} 37. Bh6+ {[%clk 0:00:47.1]}
37... Kf7 {[%clk 0:00:49.4]} 38. Be3 {[%clk 0:00:44.2]} 38... Ke6 {[%clk
0:00:44.8]} 39. Qxa4 {[%clk 0:00:38.2]} 39... Qd3 {[%clk 0:00:21.1]} 40. Qe8+
{[%clk 0:00:34.4]} 40... Kd5 {[%clk 0:00:18.6]} 41. Qg8+ {[%clk 0:00:24.8]}
41... Kc6 {[%clk 0:00:17.2]} 42. Qxd8 {[%clk 0:00:20.6]} 42... Qb1+ {[%clk
0:00:13.3]} 43. Kf2 {[%clk 0:00:21]} 43... Qc2+ {[%clk 0:00:13]} 44. Nd2 {[%clk
0:00:20.5]} 44... Kb7 {[%clk 0:00:12.6]} 45. Qc7+ {[%clk 0:00:18.4]} 45... Qxc7
{[%clk 0:00:11.9]} 46. bxc7 {[%clk 0:00:19.3]} 46... Kxc7 {[%clk 0:00:12.8]} 47.
Bg5 {[%clk 0:00:19.2]} 47... Kd7 {[%clk 0:00:12.7]} 48. Ke2 {[%clk 0:00:18.9]}
48... d5 {[%clk 0:00:13]} 49. Kd3 {[%clk 0:00:19.2]} 49... Ke6 {[%clk
0:00:12.1]} 50. Be3 {[%clk 0:00:18.5]} 50... f4 {[%clk 0:00:11.7]} 51. Bf2
{[%clk 0:00:18.7]} 51... g5 {[%clk 0:00:12.2]} 52. g3 {[%clk 0:00:19]} 52... h5
{[%clk 0:00:12]} 53. gxf4 {[%clk 0:00:18.9]} 53... gxf4 {[%clk 0:00:12.9]} 54.
Nb3 {[%clk 0:00:19.1]} 54... Kf5 {[%clk 0:00:13.2]} 55. Nc5 {[%clk 0:00:19.5]}
55... Kf6 {[%clk 0:00:12.4]} 56. h4 {[%clk 0:00:19.9]} 56... Kf5 {[%clk
0:00:12.9]} 57. Nd7 {[%clk 0:00:19.6]} 57... e4+ {[%clk 0:00:12.3]} 58. fxe4+
{[%clk 0:00:19.3]} 58... dxe4+ {[%clk 0:00:12.4]} 59. Ke2 {[%clk 0:00:19.9]}
59... Kg4 {[%clk 0:00:12.5]} 60. Nf6+ {[%clk 0:00:19.4]} 60... Kf5 {[%clk
0:00:09.1]} 61. Nxh5 {[%clk 0:00:19.8]} 61... e3 {[%clk 0:00:09.5]} 62. Be1
{[%clk 0:00:20]} 62... Kg4 {[%clk 0:00:09]} 63. Nf6+ {[%clk 0:00:20]} 63... Kf5
{[%clk 0:00:07.6]} 64. Nd7 {[%clk 0:00:19.2]} 64... Ke4 {[%clk 0:00:07]} 65.
Nc5+ {[%clk 0:00:19.6]} 65... Kf5 {[%clk 0:00:07.1]} 66. Kf3 {[%clk 0:00:18.4]}
66... Kg6 {[%clk 0:00:05.1]} 67. Kxf4 {[%clk 0:00:17.9]} 67... Kh5 {[%clk
0:00:06]} 68. Kxe3 {[%clk 0:00:17.1]} 68... Kg4 {[%clk 0:00:06.9]} 69. Ne4
{[%clk 0:00:16.4]} 69... Kh5 {[%clk 0:00:07.8]} 70. Kf4 {[%clk 0:00:16.5]} 70...
Kh6 {[%clk 0:00:08.7]} 71. Kg4 {[%clk 0:00:16.6]} 71... Kg6 {[%clk 0:00:09.6]}
72. h5+ {[%clk 0:00:17.2]} 72... Kh6 {[%clk 0:00:10.5]} 73. Bd2+ {[%clk
0:00:16.6]} 73... Kh7 {[%clk 0:00:11.4]} 74. Kg5 {[%clk 0:00:17.1]} 74... Kg7
{[%clk 0:00:11.9]} 75. h6+ {[%clk 0:00:17.7]} 75... Kh7 {[%clk 0:00:12.8]} 76.
Nf6+ {[%clk 0:00:18.1]} 76... Kh8 {[%clk 0:00:13.3]} 77. Nh5 {[%clk 0:00:18.1]}
77... Kh7 {[%clk 0:00:13.6]} 78. Ng3 {[%clk 0:00:16.7]} 78... Kh8 {[%clk
0:00:13.9]} 79. Kg6 {[%clk 0:00:17.1]} 79... Kg8 {[%clk 0:00:14.4]} 80. h7+
{[%clk 0:00:17.4]} 1-0

[Event "Early-Titled-Tuesday-Blitz-February-06-2024"]
[Site "Chess.com"]
[Date "2024.02.06"]
[Round "4"]
[White "FMCarmona"]
[Black "NitaLucian"]
[Result "1/2-1/2"]
[WhiteElo "2154"]
[BlackElo "2349"]
[TimeControl "180+1"]
[EndTime "8:41:02 PST"]
[Termination "Game drawn - insufficient material"]

1. e4 {[%clk 0:03:00.9]} 1... d6 {[%clk 0:03:00.9]} 2. d4 {[%clk 0:02:58.2]}
2... Nf6 {[%clk 0:03:01.8]} 3. Nc3 {[%clk 0:02:58.3]} 3... e5 {[%clk 0:03:02.7]}
4. Nf3 {[%clk 0:02:50.4]} 4... Nbd7 {[%clk 0:03:01.8]} 5. g3 {[%clk 0:02:47.2]}
5... Be7 {[%clk 0:03:01.8]} 6. Bg2 {[%clk 0:02:47.7]} 6... O-O {[%clk
0:03:02.2]} 7. O-O {[%clk 0:02:48.3]} 7... b5 {[%clk 0:03:01.8]} 8. Nxb5 {[%clk
0:02:32.7]} 8... Nxe4 {[%clk 0:03:00.1]} 9. Re1 {[%clk 0:02:28.9]} 9... Ba6
{[%clk 0:02:42]} 10. Rxe4 {[%clk 0:02:21.2]} 10... Bxb5 {[%clk 0:02:41.3]} 11.
dxe5 {[%clk 0:02:21.4]} 11... Nxe5 {[%clk 0:02:38.7]} 12. Nd4 {[%clk 0:02:01.4]}
12... Bd7 {[%clk 0:02:32.6]} 13. Bf4 {[%clk 0:01:52.5]} 13... Bf6 {[%clk
0:02:28.5]} 14. Re1 {[%clk 0:01:31.2]} 14... Rb8 {[%clk 0:02:25.9]} 15. b3
{[%clk 0:01:29.8]} 15... Ng6 {[%clk 0:02:20.5]} 16. Be3 {[%clk 0:01:19.4]} 16...
c5 {[%clk 0:02:19.3]} 17. Nc6 {[%clk 0:01:05.4]} 17... Bxc6 {[%clk 0:02:17.4]}
18. Bxc6 {[%clk 0:01:05.8]} 18... Bxa1 {[%clk 0:02:16.3]} 19. Qxa1 {[%clk
0:01:06.7]} 19... Ne5 {[%clk 0:02:12.4]} 20. Bd5 {[%clk 0:01:06.3]} 20... Qf6
{[%clk 0:01:32.4]} 21. Bxc5 {[%clk 0:00:53.1]} 21... dxc5 {[%clk 0:01:28]} 22.
Qxe5 {[%clk 0:00:53.7]} 22... Qxe5 {[%clk 0:01:27.1]} 23. Rxe5 {[%clk
0:00:54.6]} 23... Rfe8 {[%clk 0:01:26.2]} 24. Rf5 {[%clk 0:00:50.6]} 24... Re7
{[%clk 0:01:23.1]} 25. Bc4 {[%clk 0:00:50.3]} 25... Rc8 {[%clk 0:01:19.5]} 26.
Kf1 {[%clk 0:00:36.4]} 26... g6 {[%clk 0:01:19.3]} 27. Rd5 {[%clk 0:00:35.8]}
27... Kg7 {[%clk 0:01:19]} 28. h4 {[%clk 0:00:35.7]} 28... Rcc7 {[%clk
0:01:17.2]} 29. Rd6 {[%clk 0:00:35.2]} 29... Red7 {[%clk 0:01:15]} 30. Ra6
{[%clk 0:00:31.9]} 30... Kf8 {[%clk 0:01:10.3]} 31. a4 {[%clk 0:00:28]} 31...
Ke7 {[%clk 0:01:09.6]} 32. Rf6 {[%clk 0:00:24.5]} 32... Kd8 {[%clk 0:01:04.2]}
33. h5 {[%clk 0:00:20.7]} 33... Ke8 {[%clk 0:00:52.2]} 34. hxg6 {[%clk
0:00:18.3]} 34... hxg6 {[%clk 0:00:51.5]} 35. Ra6 {[%clk 0:00:14.1]} 35... Kf8
{[%clk 0:00:51.1]} 36. Rf6 {[%clk 0:00:12.5]} 36... Kg7 {[%clk 0:00:48.9]} 37.
Ra6 {[%clk 0:00:13.1]} 37... f6 {[%clk 0:00:48.3]} 38. Re6 {[%clk 0:00:11.5]}
38... Rd2 {[%clk 0:00:46.3]} 39. Bd3 {[%clk 0:00:10.2]} 39... Rd1+ {[%clk
0:00:44.4]} 40. Ke2 {[%clk 0:00:10.1]} 40... Ra1 {[%clk 0:00:41.1]} 41. g4
{[%clk 0:00:09.9]} 41... g5 {[%clk 0:00:40.1]} 42. Kd2 {[%clk 0:00:09.8]} 42...
Kf7 {[%clk 0:00:39.4]} 43. Re3 {[%clk 0:00:09.4]} 43... Re7 {[%clk 0:00:36.4]}
44. Rf3 {[%clk 0:00:09.1]} 44... Rh1 {[%clk 0:00:33.2]} 45. Kc3 {[%clk
0:00:09.1]} 45... Re5 {[%clk 0:00:32.2]} 46. Rg3 {[%clk 0:00:08.5]} 46... Rh2
{[%clk 0:00:30.3]} 47. Rf3 {[%clk 0:00:08.5]} 47... Ke6 {[%clk 0:00:29.7]} 48.
Kc4 {[%clk 0:00:09]} 48... Rh4 {[%clk 0:00:27.1]} 49. Bf5+ {[%clk 0:00:07.7]}
49... Ke7 {[%clk 0:00:25.7]} 50. Kb5 {[%clk 0:00:06.5]} 50... Rh2 {[%clk
0:00:23.5]} 51. c3 {[%clk 0:00:06.3]} 51... Re2 {[%clk 0:00:20.1]} 52. b4 {[%clk
0:00:06.1]} 52... cxb4 {[%clk 0:00:19.1]} 53. cxb4 {[%clk 0:00:06.2]} 53...
Rhxf2 {[%clk 0:00:19.1]} 54. Rc3 {[%clk 0:00:06.2]} 54... Re5+ {[%clk
0:00:18.6]} 55. Ka6 {[%clk 0:00:05.9]} 55... Rf4 {[%clk 0:00:18.9]} 56. Rc7+
{[%clk 0:00:04]} 56... Kd6 {[%clk 0:00:18.9]} 57. Rd7+ {[%clk 0:00:03.3]} 57...
Kc6 {[%clk 0:00:18.7]} 58. b5+ {[%clk 0:00:03.6]} 58... Kc5 {[%clk 0:00:18.8]}
59. Rc7+ {[%clk 0:00:03.9]} 59... Kb4 {[%clk 0:00:18.7]} 60. a5 {[%clk
0:00:04.4]} 60... Rxb5 {[%clk 0:00:17.4]} 61. Bd3 {[%clk 0:00:02.7]} 61... Rxa5+
{[%clk 0:00:16.9]} 62. Kb7 {[%clk 0:00:01.8]} 62... Ra3 {[%clk 0:00:15.6]} 63.
Bf5 {[%clk 0:00:01.2]} 63... Rxf5 {[%clk 0:00:15.1]} 64. gxf5 {[%clk 0:00:01.3]}
64... g4 {[%clk 0:00:15.5]} 65. Rf7 {[%clk 0:00:01.3]} 65... g3 {[%clk
0:00:16.2]} 66. Rxf6 {[%clk 0:00:01.9]} 66... g2 {[%clk 0:00:16.6]} 67. Rg6
{[%clk 0:00:02.7]} 67... Ra2 {[%clk 0:00:16.6]} 68. f6 {[%clk 0:00:02.9]} 68...
a5 {[%clk 0:00:17.1]} 69. f7 {[%clk 0:00:03.2]} 69... Rf2 {[%clk 0:00:17.7]} 70.
Rxg2 {[%clk 0:00:03.5]} 70... Rxf7+ {[%clk 0:00:16.8]} 71. Kc6 {[%clk
0:00:01.5]} 71... Rf3 {[%clk 0:00:17.7]} 72. Rb2+ {[%clk 0:00:01.4]} 72... Kc4
{[%clk 0:00:15.9]} 73. Ra2 {[%clk 0:00:01.9]} 73... Kb4 {[%clk 0:00:16.5]} 74.
Kd6 {[%clk 0:00:02.5]} 74... Rb3 {[%clk 0:00:16.1]} 75. Kd7 {[%clk 0:00:03.4]}
75... a4 {[%clk 0:00:16.5]} 76. Ra1 {[%clk 0:00:04.3]} 76... a3 {[%clk
0:00:16.9]} 77. Kd6 {[%clk 0:00:05.2]} 77... Rb2 {[%clk 0:00:17]} 78. Kd5 {[%clk
0:00:05.8]} 78... Kb3 {[%clk 0:00:17.9]} 79. Kd4 {[%clk 0:00:06.3]} 79... Rd2+
{[%clk 0:00:18.5]} 80. Ke3 {[%clk 0:00:06.4]} 80... Rc2 {[%clk 0:00:19.4]} 81.
Kd3 {[%clk 0:00:06.7]} 81... Kb2 {[%clk 0:00:19.6]} 82. Rxa3 {[%clk 0:00:05.7]}
82... Kxa3 {[%clk 0:00:17.8]} 83. Kxc2 {[%clk 0:00:05.5]} 1/2-1/2

[Event "Early-Titled-Tuesday-Blitz-February-06-2024"]
[Site "Chess.com"]
[Date "2024.02.06"]
[Round "4"]
[White "PedroGil25"]
[Black "NelsonLinda"]
[Result "1/2-1/2"]
[WhiteElo "2400"]
[BlackElo "2577"]
[TimeControl "180+1"]
[EndTime "8:41:03 PST"]
[Termination "Game drawn by repetition"]

1. e4 {[%clk 0:03:00.9]} 1... c5 {[%clk 0:02:58.7]} 2. Nf3 {[%clk 0:02:58.1]}
2... e6 {[%clk 0:02:58.7]} 3. c3 {[%clk 0:02:57.2]} 3... Nf6 {[%clk 0:02:44.6]}
4. e5 {[%clk 0:02:49.9]} 4... Nd5 {[%clk 0:02:45]} 5. d4 {[%clk 0:02:50.4]} 5...
cxd4 {[%clk 0:02:45.2]} 6. cxd4 {[%clk 0:02:51.3]} 6... b6 {[%clk 0:02:45.8]} 7.
Bc4 {[%clk 0:02:48.2]} 7... Bb7 {[%clk 0:02:45.9]} 8. O-O {[%clk 0:02:47]} 8...
Be7 {[%clk 0:02:42.5]} 9. Nc3 {[%clk 0:02:46.6]} 9... Nxc3 {[%clk 0:02:42.3]}
10. bxc3 {[%clk 0:02:47.5]} 10... O-O {[%clk 0:02:41.3]} 11. Qe2 {[%clk
0:02:39.4]} 11... d6 {[%clk 0:02:36.9]} 12. Bf4 {[%clk 0:02:37.5]} 12... dxe5
{[%clk 0:02:24.9]} 13. Nxe5 {[%clk 0:02:38.4]} 13... Nd7 {[%clk 0:02:24.7]} 14.
Rad1 {[%clk 0:02:36.7]} 14... Nxe5 {[%clk 0:02:17.8]} 15. Bxe5 {[%clk
0:02:35.2]} 15... Rc8 {[%clk 0:02:17.9]} 16. Rc1 {[%clk 0:02:04.3]} 16... Bd6
{[%clk 0:01:59.7]} 17. Bb3 {[%clk 0:01:48.8]} 17... Bxe5 {[%clk 0:01:57.1]} 18.
Qxe5 {[%clk 0:01:49.7]} 18... Qc7 {[%clk 0:01:48.5]} 19. Qe3 {[%clk 0:01:40.3]}
19... Rfd8 {[%clk 0:01:39]} 20. Rfd1 {[%clk 0:01:39]} 20... Qc6 {[%clk
0:01:35.5]} 21. f3 {[%clk 0:01:39.1]} 21... Qd6 {[%clk 0:01:35.2]} 22. c4 {[%clk
0:01:33]} 22... Rc7 {[%clk 0:01:31.1]} 23. c5 {[%clk 0:01:31.9]} 23... Qe7
{[%clk 0:01:24]} 24. cxb6 {[%clk 0:01:20.7]} 24... axb6 {[%clk 0:01:22.2]} 25.
d5 {[%clk 0:01:16.1]} 25... Bxd5 {[%clk 0:00:19.4]} 26. Qxb6 {[%clk 0:01:06]}
26... Rxc1 {[%clk 0:00:17.2]} 27. Rxc1 {[%clk 0:01:06.9]} 27... Bxb3 {[%clk
0:00:16.7]} 28. axb3 {[%clk 0:01:06.8]} 28... h5 {[%clk 0:00:12.3]} 29. h3
{[%clk 0:01:03.9]} 29... Qg5 {[%clk 0:00:10]} 30. Qc5 {[%clk 0:01:00.9]} 30...
Rd5 {[%clk 0:00:08.8]} 31. Qc8+ {[%clk 0:00:57.9]} 31... Kh7 {[%clk 0:00:09.2]}
32. Qc2+ {[%clk 0:00:58.5]} 32... g6 {[%clk 0:00:08.8]} 33. Rd1 {[%clk
0:00:54.7]} 33... Qe3+ {[%clk 0:00:06.6]} 34. Kh2 {[%clk 0:00:54.6]} 34... Rg5
{[%clk 0:00:04]} 35. Rd2 {[%clk 0:00:51.8]} 35... Qf4+ {[%clk 0:00:04]} 36. Kg1
{[%clk 0:00:50.3]} 36... Ra5 {[%clk 0:00:04.5]} 37. Rd1 {[%clk 0:00:46.7]} 37...
Re5 {[%clk 0:00:03.1]} 38. Qd2 {[%clk 0:00:44]} 38... Qg3 {[%clk 0:00:02.6]} 39.
Qf2 {[%clk 0:00:43]} 39... Qf4 {[%clk 0:00:03.2]} 40. Qd2 {[%clk 0:00:42.5]}
40... Qh4 {[%clk 0:00:03.6]} 41. Qf2 {[%clk 0:00:40]} 41... Qb4 {[%clk
0:00:04.3]} 42. Rd7 {[%clk 0:00:24.1]} 42... Rf5 {[%clk 0:00:03.7]} 43. Qe3
{[%clk 0:00:19]} 43... Kg7 {[%clk 0:00:02.9]} 44. Qd4+ {[%clk 0:00:18.1]} 44...
Qxd4+ {[%clk 0:00:03.3]} 45. Rxd4 {[%clk 0:00:19]} 45... Rb5 {[%clk 0:00:03.7]}
46. b4 {[%clk 0:00:19.7]} 46... Kf6 {[%clk 0:00:03.9]} 47. Rc4 {[%clk
0:00:20.4]} 47... Ke5 {[%clk 0:00:04.1]} 48. Kf2 {[%clk 0:00:21]} 48... Kd5
{[%clk 0:00:04.5]} 49. Rf4 {[%clk 0:00:21.5]} 49... f5 {[%clk 0:00:02.9]} 50.
Rh4 {[%clk 0:00:18.4]} 50... Ke5 {[%clk 0:00:02.6]} 51. g4 {[%clk 0:00:18.7]}
51... fxg4 {[%clk 0:00:01.8]} 52. hxg4 {[%clk 0:00:18.8]} 52... Rxb4 {[%clk
0:00:02.2]} 53. Kg3 {[%clk 0:00:19.1]} 53... hxg4 {[%clk 0:00:02.2]} 54. fxg4
{[%clk 0:00:20]} 54... Rb3+ {[%clk 0:00:02.1]} 55. Kg2 {[%clk 0:00:20.6]} 55...
Kf4 {[%clk 0:00:02.3]} 56. Rh6 {[%clk 0:00:20.9]} 56... g5 {[%clk 0:00:02.1]}
57. Rxe6 {[%clk 0:00:20.7]} 57... Rb2+ {[%clk 0:00:02.1]} 58. Kg1 {[%clk
0:00:20.4]} 58... Kxg4 {[%clk 0:00:02.1]} 59. Re3 {[%clk 0:00:21]} 59... Kf4
{[%clk 0:00:02.1]} 60. Ra3 {[%clk 0:00:21.6]} 60... g4 {[%clk 0:00:02.7]} 61.
Rc3 {[%clk 0:00:21.7]} 61... Kg5 {[%clk 0:00:02.4]} 62. Ra3 {[%clk 0:00:20.8]}
62... Kh4 {[%clk 0:00:02.8]} 63. Rc3 {[%clk 0:00:20.4]} 63... Kg5 {[%clk
0:00:03.4]} 64. Ra3 {[%clk 0:00:20.5]} 64... Kh5 {[%clk 0:00:03.9]} 65. Rc3
{[%clk 0:00:20.7]} 65... Ra2 {[%clk 0:00:04.4]} 66. Rb3 {[%clk 0:00:20.9]} 66...
Kh4 {[%clk 0:00:04.8]} 67. Rc3 {[%clk 0:00:21.1]} 67... g3 {[%clk 0:00:03.6]}
68. Rc8 {[%clk 0:00:21.2]} 68... Kg5 {[%clk 0:00:02.3]} 69. Rg8+ {[%clk
0:00:20.3]} 69... Kf4 {[%clk 0:00:02.6]} 70. Rf8+ {[%clk 0:00:20.7]} 70... Ke4
{[%clk 0:00:03.2]} 71. Rg8 {[%clk 0:00:20.9]} 71... Kf3 {[%clk 0:00:03.3]} 72.
Rf8+ {[%clk 0:00:21.5]} 72... Kg4 {[%clk 0:00:03.6]} 73. Rg8+ {[%clk 0:00:22.1]}
73... Kh4 {[%clk 0:00:04.3]} 74. Rh8+ {[%clk 0:00:22.5]} 74... Kg5 {[%clk
0:00:04.7]} 75. Rg8+ {[%clk 0:00:23.2]} 75... Kf4 {[%clk 0:00:05.1]} 76. Rf8+
{[%clk 0:00:23.7]} 76... Ke3 {[%clk 0:00:05]} 77. Rg8 {[%clk 0:00:24.2]} 77...
Kf3 {[%clk 0:00:04.8]} 78. Rf8+ {[%clk 0:00:24.5]} 78... Kg4 {[%clk 0:00:05.2]}
79. Rg8+ {[%clk 0:00:25]} 79... Kf4 {[%clk 0:00:05.7]} 1/2-1/2

[Event "Early-Titled-Tuesday-Blitz-February-06-2024"]
[Site "Chess.com"]
[Date "2024.02.06"]
[Round "4"]
[White "microbear"]
[Black "JohnWhite1952"]
[Result "1-0"]
[WhiteElo "2275"]
[BlackElo "1975"]
[TimeControl "180+1"]
[EndTime "8:41:03 PST"]
[Termination "microbear won on time"]

1. e3 {[%clk 0:03:00.9]} 1... c5 {[%clk 0:02:56.2]} 2. f4 {[%clk 0:03:01.8]}
2... Nc6 {[%clk 0:02:52.6]} 3. Nf3 {[%clk 0:03:02.7]} 3... d6 {[%clk 0:02:51.1]}
4. c3 {[%clk 0:03:03.6]} 4... e6 {[%clk 0:02:47]} 5. d4 {[%clk 0:03:04.5]} 5...
Nf6 {[%clk 0:02:45.1]} 6. Bb5 {[%clk 0:03:03.5]} 6... Bd7 {[%clk 0:02:41.7]} 7.
Bxc6 {[%clk 0:03:02.9]} 7... Bxc6 {[%clk 0:02:40.9]} 8. O-O {[%clk 0:03:03]}
8... cxd4 {[%clk 0:02:36.5]} 9. cxd4 {[%clk 0:03:03.9]} 9... Be7 {[%clk
0:02:33]} 10. Nc3 {[%clk 0:03:03.6]} 10... O-O {[%clk 0:02:31.7]} 11. Bd2 {[%clk
0:03:03.1]} 11... Re8 {[%clk 0:02:25]} 12. Rc1 {[%clk 0:03:02.1]} 12... Bf8
{[%clk 0:02:14.9]} 13. b4 {[%clk 0:02:57.3]} 13... a6 {[%clk 0:02:12.1]} 14. a4
{[%clk 0:02:56.3]} 14... Rc8 {[%clk 0:02:08]} 15. b5 {[%clk 0:02:55.5]} 15...
axb5 {[%clk 0:02:06.6]} 16. axb5 {[%clk 0:02:55.6]} 16... Bd7 {[%clk 0:02:05.7]}
17. Qb3 {[%clk 0:02:55.5]} 17... d5 {[%clk 0:01:53.9]} 18. Ne5 {[%clk
0:02:55.2]} 18... Bd6 {[%clk 0:01:52.2]} 19. Na4 {[%clk 0:02:51.2]} 19... b6
{[%clk 0:01:42.6]} 20. Nxd7 {[%clk 0:02:43.8]} 20... Nxd7 {[%clk 0:01:41.3]} 21.
Bb4 {[%clk 0:02:43.4]} 21... Bxb4 {[%clk 0:01:39]} 22. Qxb4 {[%clk 0:02:44.3]}
22... Ra8 {[%clk 0:01:29.9]} 23. Rc6 {[%clk 0:02:42.9]} 23... Nb8 {[%clk
0:01:18]} 24. Rfc1 {[%clk 0:02:34.2]} 24... Nxc6 {[%clk 0:01:13.8]} 25. bxc6
{[%clk 0:02:33.2]} 25... Qc7 {[%clk 0:01:09.4]} 26. Qxb6 {[%clk 0:02:31.7]}
26... Rec8 {[%clk 0:01:04.6]} 27. Qxc7 {[%clk 0:01:11.1]} 27... Rxc7 {[%clk
0:01:05.5]} 28. Nc5 {[%clk 0:01:05.2]} 28... Rac8 {[%clk 0:00:58.6]} 29. Rb1
{[%clk 0:01:02.3]} 29... Rxc6 {[%clk 0:00:55]} 30. Rb7 {[%clk 0:01:01.4]} 30...
R6c7 {[%clk 0:00:50.9]} 31. Rb6 {[%clk 0:00:57.4]} 31... h6 {[%clk 0:00:47.9]}
32. Kf2 {[%clk 0:00:57]} 32... Ra7 {[%clk 0:00:42.1]} 33. Kf3 {[%clk 0:00:56.5]}
33... Rca8 {[%clk 0:00:41.2]} 34. Rb7 {[%clk 0:00:54.9]} 34... Rxb7 {[%clk
0:00:40.4]} 35. Nxb7 {[%clk 0:00:55.8]} 35... Ra2 {[%clk 0:00:37.1]} 36. Nc5
{[%clk 0:00:54.7]} 36... Kf8 {[%clk 0:00:34]} 37. h3 {[%clk 0:00:51.1]} 37...
Ke7 {[%clk 0:00:33.4]} 38. Nd3 {[%clk 0:00:50.6]} 38... f6 {[%clk 0:00:32.2]}
39. h4 {[%clk 0:00:49.1]} 39... Kd6 {[%clk 0:00:31.5]} 40. g3 {[%clk 0:00:49.2]}
40... Rd2 {[%clk 0:00:28.6]} 41. Nc5 {[%clk 0:00:47]} 41... e5 {[%clk
0:00:26.5]} 42. fxe5+ {[%clk 0:00:40.8]} 42... fxe5 {[%clk 0:00:26]} 43. Nb3
{[%clk 0:00:35.1]} 43... Rd3 {[%clk 0:00:23.5]} 44. dxe5+ {[%clk 0:00:34.4]}
44... Kxe5 {[%clk 0:00:20.8]} 45. Nc1 {[%clk 0:00:24.4]} 45... Rc3 {[%clk
0:00:20.2]} 46. Ne2 {[%clk 0:00:24.1]} 46... Rc2 {[%clk 0:00:18.3]} 47. Nd4
{[%clk 0:00:23.4]} 47... Rc3 {[%clk 0:00:17.6]} 48. Ne2 {[%clk 0:00:22.3]} 48...
Ra3 {[%clk 0:00:15.9]} 49. Nd4 {[%clk 0:00:22]} 49... g5 {[%clk 0:00:14.8]} 50.
hxg5 {[%clk 0:00:21.6]} 50... hxg5 {[%clk 0:00:14.9]} 51. g4 {[%clk 0:00:21.8]}
51... Ra2 {[%clk 0:00:14.2]} 52. Nc6+ {[%clk 0:00:21.2]} 52... Kd6 {[%clk
0:00:12.9]} 53. Nd4 {[%clk 0:00:21]} 53... Ke5 {[%clk 0:00:12.2]} 54. Nc6+
{[%clk 0:00:20.8]} 54... Ke6 {[%clk 0:00:11.7]} 55. Nd4+ {[%clk 0:00:21.2]}
55... Kd6 {[%clk 0:00:10.6]} 56. Nf5+ {[%clk 0:00:19.4]} 56... Ke5 {[%clk
0:00:10.5]} 57. Nd4 {[%clk 0:00:19.6]} 57... Ra8 {[%clk 0:00:09.9]} 58. Nc6+
{[%clk 0:00:17.7]} 58... Kd6 {[%clk 0:00:09.7]} 59. Nd4 {[%clk 0:00:18.2]} 59...
Rf8+ {[%clk 0:00:09.1]} 60. Ke2 {[%clk 0:00:18.9]} 60... Ke5 {[%clk 0:00:07.8]}
61. Nf3+ {[%clk 0:00:18.4]} 61... Kf6 {[%clk 0:00:05.5]} 62. Nd4 {[%clk
0:00:18.9]} 62... Re8 {[%clk 0:00:04.6]} 63. Kf3 {[%clk 0:00:18]} 63... Kg6
{[%clk 0:00:04.3]} 64. Nc6 {[%clk 0:00:17.8]} 64... Kf6 {[%clk 0:00:03.9]} 65.
Nd4 {[%clk 0:00:18]} 65... Kg6 {[%clk 0:00:04.3]} 66. Nc6 {[%clk 0:00:18.6]}
66... Kf6 {[%clk 0:00:04.5]} 67. Nb4 {[%clk 0:00:19.2]} 67... Rd8 {[%clk
0:00:03.3]} 68. Nc6 {[%clk 0:00:19.8]} 68... Rd6 {[%clk 0:00:01.5]} 69. Nd4
{[%clk 0:00:20.2]} 69... Kg6 {[%clk 0:00:01.1]} 70. Nf5 {[%clk 0:00:20.8]} 1-0